fUST/lending_fUST_20250612
["ID","MTS","AMOUNT","RATE_DAILY","PERIOD"]
[365496311,1749705032626,-715.64,0.00019725,2]
[365496312,1749705032637,-1835.5853967,0.00019845,2]
[365496313,1749705032647,-598.9562423,0.000199,2]
[365496314,1749705032656,-182.92206739,0.0002,3]
[365496315,1749705032666,-598.9562422,0.00020072,2]
[365496316,1749705032677,-191.981177,0.00020117,2]
[365496317,1749705032686,-598.9562422,0.00020245,2]
[365496318,1749705032696,-568.31547181,0.00020278,2]
[365496319,1749705032705,-598.9562422,0.00020417,3]
[365496320,1749705032715,-171.66,0.0002045,2]
[365496321,1749705032725,-179.64331478,0.0002045,2]
[365496322,1749705032735,-954.18,0.00020582,2]
[365496323,1749705032746,-598.9562422,0.0002059,3]
[365496324,1749705032757,-300.0,0.00020609,2]
[365496325,1749705032767,-420.0,0.00020609,2]
[365496326,1749705032776,-480.0,0.0002071,2]
[365496327,1749705032787,-598.9562422,0.00020762,3]
[365496328,1749705032797,-598.9562422,0.00020934,4]
[365496329,1749705032807,-302.2514951,0.00021023,2]
[365496330,1749705032817,-568.31547181,0.00021031,2]
[365496331,1749705032827,-160.0,0.00021094,2]
[365496332,1749705032836,-467.57490498,0.00021095,4]
[365496333,1749705032846,-424.86142711,0.00021095,4]
[365496334,1749705032855,-460.0,0.00021095,4]
[365496335,1749705032865,-407.15278753,0.00021095,4]
[365496336,1749705032875,-478.00875191,0.00021095,4]
[365496337,1749705032885,-463.87796076,0.00021095,4]
[365496338,1749705032894,-470.87973136,0.00021095,4]
[365496339,1749705032904,-460.0,0.00021095,4]
[365496340,1749705032914,-467.27884343,0.00021095,4]
[365496341,1749705032923,-460.0,0.00021095,4]
[365496342,1749705032933,-385.59131615,0.00021095,4]
[365496343,1749705032942,-391.03048844,0.00021095,4]
[365496344,1749705032952,-460.0,0.00021095,4]
[365496345,1749705032961,-470.18054093,0.00021095,4]
[365496346,1749705032971,-109.68532074,0.00021095,4]
[365496347,1749705032984,-471.07628837,0.00021095,4]
[365496348,1749705032994,-460.0,0.00021095,4]
[365496349,1749705033005,-511.00428479,0.00021095,4]
[365496350,1749705033014,-208.24737572,0.00021095,4]
[365496351,1749705033025,-465.74221194,0.00021095,4]
[365496352,1749705033035,-419.20697765,0.00021095,4]
[365496353,1749705033045,-460.0,0.00021095,4]
[365496354,1749705033056,-462.40441852,0.00021095,4]
[365496355,1749705033065,-460.0,0.00021095,4]
[365496356,1749705033075,-294.14221843,0.00021095,4]
[365496357,1749705033085,-460.0,0.00021095,4]
[365496358,1749705033095,-444.36779415,0.00021095,4]
[365496384,1749705038198,-804.71651119,0.00019833,2]
[365496385,1749705038208,-573.19934744,0.00021094,2]
[365496387,1749705038218,-15.63220585,0.00021095,4]
[365496389,1749705038228,-429.60495594,0.00021095,4]
[365496391,1749705038238,-460.0,0.00021095,4]
[365496393,1749705038248,-387.58597834,0.00021095,4]
[365496395,1749705038258,-409.65727663,0.00021095,4]
[365496397,1749705038268,-471.10635565,0.00021095,4]
[365496399,1749705038278,-460.0,0.00021095,4]
[365496400,1749705038288,-417.23987646,0.00021095,4]
[365496402,1749705038300,-460.0,0.00021095,4]
[365496405,1749705038310,-461.23025787,0.00021095,4]
[365496406,1749705038319,-460.0,0.00021095,4]
[365496409,1749705038329,-460.0,0.00021095,4]
[365496410,1749705038338,-406.27263577,0.00021095,4]
[365496412,1749705038348,-465.31775036,0.00021095,4]
[365496414,1749705038358,-443.96888299,0.00021095,4]
[365496416,1749705038370,-418.04874256,0.00021095,4]
[365496418,1749705038381,-420.0,0.00021095,4]
[365496420,1749705038390,-424.80772961,0.00021095,4]
[365496422,1749705038400,-555.4295518,0.00021095,4]
[365496424,1749705038410,-460.0,0.00021095,2]
[365496426,1749705038420,-392.57550503,0.00021095,4]
[365496428,1749705038430,-169.95890766,0.00021095,4]
[365496430,1749705038442,-226.46316829,0.00021095,4]
[365496432,1749705038452,-399.7199695,0.00021095,4]
[365496434,1749705038462,-164.40854753,0.00021095,2]
[365496436,1749705038471,-157.70970975,0.00021095,2]
[365496438,1749705038481,-154.23443605,0.00021095,2]
[365496440,1749705038490,-435.88795734,0.00021095,4]
[365496442,1749705038501,-153.8752723,0.00021095,2]
[365496443,1749705038510,-203.06175282,0.00021095,2]
[365496445,1749705038520,-151.41182598,0.00021095,2]
[365496446,1749705038529,-460.0,0.00021095,4]
[365496447,1749705038538,-441.11070151,0.00021095,4]
[365496448,1749705038548,-208.8751618,0.00021095,2]
[365496449,1749705038557,-71.26156284,0.00021095,4]
[365496450,1749705038573,-388.73843716,0.00021095,4]
[365496452,1749705038582,-431.70162783,0.00021095,4]
[365496454,1749705038592,-460.0,0.00021095,4]
[365496456,1749705038601,-460.0,0.00021095,4]
[365496457,1749705038611,-496.88771543,0.00021095,4]
[365496458,1749705038620,-460.0,0.00021095,4]
[365496459,1749705038629,-460.0,0.00021095,4]
[365496460,1749705038639,-460.0,0.00021095,4]
[365496461,1749705038649,-378.15896085,0.00021095,4]
[365496462,1749705038659,-375.88130896,0.00021095,4]
[365496463,1749705038668,-475.54587946,0.00021095,4]
[365496464,1749705038677,-471.7567886,0.00021095,4]
[365496465,1749705038687,-460.0,0.00021095,4]
[365496466,1749705038697,-460.0,0.00021095,4]
[365496467,1749705038706,-390.0,0.00021095,4]
[365496468,1749705038716,-460.0,0.00021095,4]
[365496469,1749705038725,-460.0,0.00021095,4]
[365496470,1749705038735,-460.0,0.00021095,4]
[365496471,1749705038745,-460.0,0.00021095,4]
[365496472,1749705038755,-471.91553366,0.00021095,4]
[365496473,1749705038764,-471.06493773,0.00021095,4]
[365496474,1749705038774,-460.0,0.00021095,4]
[365496475,1749705038783,-460.0,0.00021095,4]
[365496476,1749705038793,-460.0,0.00021095,4]
[365496477,1749705038802,-460.0,0.00021095,4]
[365496478,1749705038811,-469.79524499,0.00021095,4]
[365496479,1749705038821,-468.56474546,0.00021095,4]
[365496480,1749705038830,-427.97035088,0.00021095,4]
[365496481,1749705038840,-460.0,0.00021095,4]
[365496482,1749705038850,-379.44939334,0.00021095,4]
[365496483,1749705038860,-460.0,0.00021095,4]
[365496484,1749705038870,-460.0,0.00021095,4]
[365496485,1749705038880,-218.04667889,0.00021095,4]
[365496486,1749705038890,-470.78043632,0.00021095,4]
[365496487,1749705038899,-392.34747148,0.00021095,4]
[365496488,1749705038909,-468.8777859,0.00021095,4]
[365496489,1749705038919,-252.0270119,0.00021095,4]
[365496490,1749705038928,-426.04675601,0.00021095,4]
[365496491,1749705038938,-460.0,0.00021095,4]
[365496492,1749705038947,-460.0,0.00021095,4]
[365496493,1749705038957,-460.0,0.00021095,4]
[365496494,1749705038967,-422.21682478,0.00021095,4]
[365496495,1749705038976,-424.33654886,0.00021095,4]
[365496496,1749705038986,-460.0,0.00021095,4]
[365496497,1749705038996,-177.78235564,0.00021095,4]
[365496498,1749705039007,-460.0,0.00021095,4]
[365496499,1749705039017,-460.0,0.00021095,4]
[365496500,1749705039026,-435.68833261,0.00021095,4]
[365496501,1749705039036,-421.44730133,0.00021095,4]
[365496502,1749705039045,-466.02539934,0.00021095,4]
[365496503,1749705039055,-460.0,0.00021095,4]
[365496504,1749705039065,-460.0,0.00021095,4]
[365496505,1749705039075,-410.36235746,0.00021095,4]
[365496506,1749705039084,-463.2068535,0.00021095,4]
[365496507,1749705039094,-460.0,0.00021095,4]
[365496508,1749705039104,-423.3118966,0.00021095,4]
[365496509,1749705039114,-460.0,0.00021095,4]
[365496510,1749705039124,-460.0,0.00021095,4]
[365496511,1749705039135,-433.08700533,0.00021095,4]
[365496512,1749705039145,-460.0,0.00021095,4]
[365496513,1749705039155,-431.55733894,0.00021095,2]
[365496514,1749705039166,-460.0,0.00021095,4]
[365496515,1749705039176,-460.0,0.00021095,4]
[365496516,1749705039186,-460.0,0.00021095,4]
[365496517,1749705039195,-466.37966464,0.00021095,4]
[365496518,1749705039205,-402.88970055,0.00021095,4]
[365496519,1749705039214,-460.0,0.00021095,4]
[365496520,1749705039223,-460.0,0.00021095,4]
[365496521,1749705039233,-460.0,0.00021095,4]
[365496522,1749705039243,-460.0,0.00021095,4]
[365496523,1749705039252,-443.7835897,0.00021095,4]
[365496524,1749705039262,-468.42871188,0.00021095,4]
[365496525,1749705039272,-465.02704443,0.00021095,4]
[365496526,1749705039281,-432.95622097,0.00021095,4]
[365496527,1749705039293,-425.71682272,0.00021095,4]
[365496528,1749705039303,-460.0,0.00021095,4]
[365496529,1749705039313,-460.0,0.00021095,4]
[365496530,1749705039322,-460.0,0.00021095,4]
[365496531,1749705039332,-451.44464157,0.00021095,2]
[365496532,1749705039342,-460.0,0.00021095,4]
[365496533,1749705039352,-464.83582395,0.00021095,4]
[365496534,1749705039361,-430.0,0.00021095,4]
[365496535,1749705039372,-460.0,0.00021095,4]
[365496536,1749705039381,-460.0,0.00021095,4]
[365496537,1749705039392,-460.0,0.00021095,4]
[365496538,1749705039402,-431.64705495,0.00021095,4]
[365496539,1749705039412,-406.53005804,0.00021095,4]
[365496540,1749705039421,-460.0,0.00021095,4]
[365496541,1749705039431,-558.92968998,0.00021095,4]
[365496542,1749705039440,-460.0,0.00021095,4]
[365496543,1749705039449,-467.73273052,0.00021095,4]
[365496544,1749705039459,-460.0,0.00021095,4]
[365496545,1749705039468,-460.0,0.00021095,4]
[365496546,1749705039478,-460.0,0.00021095,4]
[365496547,1749705039487,-397.36897263,0.00021095,4]
[365496548,1749705039496,-460.0,0.00021095,4]
[365496549,1749705039506,-507.50500775,0.00021095,4]
[365496550,1749705039515,-460.0,0.00021095,4]
[365496551,1749705039524,-468.54700518,0.00021095,4]
[365496552,1749705039534,-460.0,0.00021095,4]
[365496553,1749705039543,-460.0,0.00021095,4]
[365496554,1749705039552,-460.0,0.00021095,4]
[365496555,1749705039562,-414.64820566,0.00021095,4]
[365496556,1749705039571,-390.0,0.00021095,4]
[365496557,1749705039580,-466.04238119,0.00021095,4]
[365496558,1749705039589,-373.57881214,0.00021095,4]
[365496559,1749705039599,-460.0,0.00021095,4]
[365496560,1749705039610,-460.0,0.00021095,4]
[365496561,1749705039619,-470.79891649,0.00021095,4]
[365496562,1749705039628,-460.0,0.00021095,4]
[365496563,1749705039638,-460.0,0.00021095,4]
[365496564,1749705039648,-490.72798162,0.00021095,4]
[365496565,1749705039657,-460.0,0.00021095,4]
[365496566,1749705039667,-396.04382101,0.00021095,4]
[365496567,1749705039676,-491.83606449,0.00021095,4]
[365496568,1749705039686,-460.0,0.00021095,4]
[365496569,1749705039695,-460.0,0.00021095,4]
[365496570,1749705039705,-151.0,0.00021095,4]
[365496571,1749705039714,-460.0,0.00021095,4]
[365496572,1749705039724,-470.77491444,0.00021095,4]
[365496573,1749705039734,-463.72501659,0.00021095,4]
[365496574,1749705039743,-460.0,0.00021095,4]
[365496575,1749705039753,-467.46,0.00021095,4]
[365496576,1749705039763,-460.0,0.00021095,4]
[365496578,1749705039773,-466.01629614,0.00021095,4]
[365496579,1749705039782,-482.78932276,0.00021095,4]
[365496580,1749705039791,-460.0,0.00021095,4]
[365496581,1749705039914,-460.0,0.00021095,4]
[365496582,1749705039925,-460.0,0.00021095,4]
[365496583,1749705039935,-460.0,0.00021095,4]
[365496584,1749705039944,-460.0,0.00021095,4]
[365496585,1749705039955,-197.82,0.00021095,4]
[365496586,1749705039964,-1000.0,0.00021095,4]
[365496587,1749705039974,-460.0,0.00021095,4]
[365496588,1749705039983,-460.0,0.00021095,4]
[365496589,1749705039992,-280.67867808,0.00021095,4]
[365496590,1749705040003,-410.0,0.00021095,4]
[365496591,1749705040013,-460.0,0.00021095,4]
[365496592,1749705040022,-416.37588785,0.00021095,4]
[365496593,1749705040032,-477.73,0.00021095,4]
[365496595,1749705040041,-460.0,0.00021095,4]
[365496597,1749705040051,-460.0,0.00021095,4]
[365496599,1749705040061,-460.0,0.00021095,4]
[365496601,1749705040070,-420.0,0.00021095,4]
[365496603,1749705040079,-460.0,0.00021095,4]
[365496605,1749705040088,-460.99850875,0.00021095,4]
[365496607,1749705040097,-463.59682233,0.00021095,4]
[365496609,1749705040108,-411.2738187,0.00021095,4]
[365496611,1749705040117,-397.086468,0.00021095,4]
[365496613,1749705040127,-460.0,0.00021095,4]
[365496615,1749705040136,-1137.42,0.000211,2]
[365496617,1749705040145,-598.9562422,0.00021107,4]
[365496619,1749705040155,-3400.02773252,0.00021223,2]
[365496621,1749705040165,-250.53944303,0.00021234,2]
[365496623,1749705040175,-500.0,0.00021255,2]
[365496625,1749705040184,-500.0,0.00021255,2]
[365496627,1749705040193,-598.9562422,0.00021279,5]
[365496629,1749705040203,-500.0,0.00021295,2]
[365496631,1749705040212,-500.0,0.00021295,2]
[365496633,1749705040222,-4126.31,0.000213,2]
[365496636,1749705040231,-545.12675193,0.00021322,2]
[365496638,1749705040241,-500.0,0.00021322,2]
[365496640,1749705040254,-506.96229589,0.00021333,2]
[365496642,1749705040264,-601.24856366,0.00021333,2]
[365496644,1749705040273,-500.0,0.00021333,2]
[365496646,1749705040282,-590.95931549,0.00021333,2]
[365496648,1749705040293,-500.0,0.00021333,2]
[365496650,1749705040304,-200.0,0.00021343,7]
[365496652,1749705040314,-200.0,0.00021343,7]
[365496654,1749705040324,-200.0,0.00021343,7]
[365496656,1749705040333,-200.0,0.00021343,7]
[365496658,1749705040343,-200.0,0.00021343,7]
[365496660,1749705040352,-200.0,0.00021343,7]
[365496662,1749705040361,-347.83302188,0.00021369,4]
[365496664,1749705040372,-460.0,0.00021369,4]
[365496666,1749705040382,-429.26394931,0.00021369,4]
[365496668,1749705040391,-460.0,0.00021369,4]
[365496670,1749705040400,-417.8070118,0.00021369,4]
[365496672,1749705040409,-473.46810578,0.00021369,4]
[365496674,1749705040418,-460.0,0.00021369,4]
[365496676,1749705040427,-460.0,0.00021369,4]
[365496678,1749705040436,-460.0,0.00021369,4]
[365496680,1749705040446,-460.0,0.00021369,4]
[365496682,1749705040456,-460.0,0.00021369,4]
[365496684,1749705040465,-466.7958208,0.00021369,4]
[365496686,1749705040474,-365.47443862,0.00021369,4]
[365496687,1749705040483,-317.06736075,0.00021369,4]
[365496689,1749705040493,-460.0,0.00021369,2]
[365496691,1749705040504,-468.86193268,0.00021369,4]
[365496693,1749705040513,-462.5553578,0.00021369,4]
[365496695,1749705040522,-432.16451016,0.00021369,4]
[365496697,1749705040532,-460.0,0.00021369,4]
[365496699,1749705040542,-460.0,0.00021369,4]
[365496701,1749705040551,-313.93933695,0.00021369,4]
[365496703,1749705040560,-399.45451582,0.00021369,4]
[365496705,1749705040569,-469.31374328,0.00021369,4]
[365496706,1749705040579,-460.0,0.00021369,4]
[365496709,1749705040588,-560.57,0.00021369,4]
[365496710,1749705040598,-466.0344899,0.00021369,4]
[365496712,1749705040607,-460.0,0.00021369,4]
[365496714,1749705040617,-460.0,0.00021369,4]
[365496716,1749705040627,-460.0,0.00021369,4]
[365496718,1749705040636,-408.81434028,0.00021369,4]
[365496721,1749705040646,-420.0,0.00021369,4]
[365496723,1749705040656,-200.59963243,0.00021369,4]
[365496725,1749705040665,-360.98385158,0.00021369,4]
[365496727,1749705040675,-382.64197562,0.00021369,4]
[365496728,1749705040684,-460.0,0.00021369,4]
[365496730,1749705040694,-460.0,0.00021369,4]
[365496732,1749705040703,-343.74025065,0.00021369,4]
[365496734,1749705040712,-460.0,0.00021369,4]
[365496736,1749705040722,-460.0,0.00021369,4]
[365496738,1749705040731,-460.0,0.00021369,4]
[365496740,1749705040741,-390.0,0.00021369,4]
[365496742,1749705040750,-460.0,0.00021369,4]
[365496744,1749705040761,-370.42801445,0.00021369,4]
[365496746,1749705040770,-471.60194967,0.00021369,4]
[365496748,1749705040780,-461.83,0.00021369,4]
[365496750,1749705040789,-194.12788347,0.00021369,4]
[365496752,1749705040799,-277.86588362,0.00021369,4]
[365496754,1749705040808,-240.0,0.00021369,4]
[365496756,1749705040819,-360.0,0.00021369,4]
[365496758,1749705040828,-460.0,0.00021369,4]
[365496760,1749705040837,-480.77526652,0.00021369,4]
[365496762,1749705040846,-219.86079993,0.00021369,4]
[365496763,1749705040856,-460.0,0.00021369,4]
[365496765,1749705040865,-440.0,0.00021369,4]
[365496767,1749705040875,-460.0,0.00021369,4]
[365496769,1749705040884,-483.17295111,0.00021369,4]
[365496771,1749705040893,-460.0,0.00021369,4]
[365496773,1749705040903,-460.0,0.00021369,4]
[365496775,1749705040912,-460.0,0.00021369,4]
[365496777,1749705040922,-460.0,0.00021369,4]
[365496779,1749705040931,-460.0,0.00021369,4]
[365496781,1749705040940,-460.0,0.00021369,4]
[365496783,1749705040951,-460.0,0.00021369,4]
[365496785,1749705040961,-460.0,0.00021369,4]
[365496787,1749705040970,-460.0,0.00021369,4]
[365496789,1749705040980,-460.0,0.00021369,4]
[365496791,1749705040989,-467.46,0.00021369,4]
[365496793,1749705040999,-460.0,0.00021369,4]
[365496795,1749705041010,-460.0,0.00021369,4]
[365496797,1749705041020,-395.77834967,0.00021369,4]
[365496798,1749705041030,-438.9,0.00021369,4]
[365496800,1749705041040,-460.0,0.00021369,4]
[365496802,1749705041049,-1001.25375367,0.00021369,4]
[365496804,1749705041059,-460.0,0.00021369,4]
[365496806,1749705041068,-460.0,0.00021369,4]
[365496808,1749705041078,-477.73,0.00021369,4]
[365496810,1749705041087,-460.0,0.00021369,4]
[365496812,1749705041097,-460.0,0.00021369,4]
[365496814,1749705041106,-460.0,0.00021369,4]
[365496816,1749705041116,-460.0,0.00021369,4]
[365496818,1749705041126,-460.0,0.00021369,4]
[365496820,1749705041135,-367.89843496,0.00021408,2]
[365496822,1749705041145,-500.0,0.00021408,2]
[365496824,1749705041154,-500.0,0.00021408,2]
[365496826,1749705041163,-500.0,0.00021408,2]
[365496828,1749705041172,-500.0,0.00021408,2]
[365496830,1749705041182,-502.21576639,0.00021408,2]
[365496832,1749705041191,-541.34304117,0.00021408,2]
[365496834,1749705041201,-500.0,0.00021438,2]
[365496836,1749705041212,-501.81008832,0.00021438,2]
[365496838,1749705041221,-1192.73,0.0002144,2]
[365496840,1749705041231,-508.88892257,0.00021444,2]
[365496842,1749705041240,-500.0,0.00021444,2]
[365496844,1749705041249,-500.0,0.00021444,2]
[365496846,1749705041260,-598.9562422,0.00021452,5]
[365496847,1749705041269,-366.89311338,0.00021602,2]
[365496849,1749705041279,-598.9562422,0.00021624,5]
[365496851,1749705041289,-151.0,0.00021643,2]
[365496853,1749705041301,-403.24690289,0.00021643,4]
[365496855,1749705041310,-460.0,0.00021643,4]
[365496857,1749705041320,-471.00070563,0.00021643,4]
[365496859,1749705041329,-419.29493836,0.00021643,4]
[365496860,1749705041340,-460.0,0.00021643,4]
[365496862,1749705041350,-460.0,0.00021643,4]
[365496864,1749705041359,-407.50108264,0.00021643,4]
[365496866,1749705041369,-460.0,0.00021643,2]
[365496868,1749705041380,-357.59566668,0.00021643,4]
[365496870,1749705041389,-460.0,0.00021643,4]
[365496872,1749705041399,-460.0,0.00021643,4]
[365496874,1749705041409,-460.0,0.00021643,4]
[365496875,1749705041419,-445.62042628,0.00021643,4]
[365496876,1749705041428,-460.0,0.00021643,4]
[365496877,1749705041438,-460.0,0.00021643,4]
[365496878,1749705041447,-370.0,0.00021643,4]
[365496880,1749705041457,-460.0,0.00021643,4]
[365496882,1749705041466,-460.0,0.00021643,4]
[365496884,1749705041476,-460.0,0.00021643,4]
[365496885,1749705041485,-460.0,0.00021643,4]
[365496887,1749705041495,-460.0,0.00021643,4]
[365496889,1749705041504,-460.0,0.00021643,4]
[365496891,1749705041515,-460.0,0.00021643,4]
[365496893,1749705041524,-460.0,0.00021643,4]
[365496895,1749705041533,-467.46,0.00021643,4]
[365496897,1749705041543,-460.0,0.00021643,4]
[365496899,1749705041553,-420.0,0.00021643,4]
[365496901,1749705041563,-460.0,0.00021643,4]
[365496903,1749705041572,-460.0,0.00021643,4]
[365496905,1749705041582,-460.0,0.00021643,4]
[365496907,1749705041591,-477.73,0.00021643,4]
[365496909,1749705041600,-460.0,0.00021643,4]
[365496910,1749705041610,-460.0,0.00021643,4]
[365496912,1749705041620,-460.0,0.00021643,4]
[365496914,1749705041630,-460.0,0.00021643,4]
[365496916,1749705041640,-460.0,0.00021643,4]
[365496918,1749705041649,-568.31547181,0.00021785,2]
[365496920,1749705041659,-598.9562422,0.00021797,6]
[365496922,1749705041669,-176.29134077,0.00021803,2]
[365496924,1749705041679,-334.78485025,0.00021843,2]
[365496926,1749705041688,-500.0,0.0002187,2]
[365496928,1749705041698,-151.0,0.00021917,2]
[365496930,1749705041707,-460.0,0.00021917,4]
[365496932,1749705041717,-442.43239032,0.00021917,4]
[365496933,1749705041727,-460.0,0.00021917,4]
[365496935,1749705041736,-460.0,0.00021917,2]
[365496937,1749705041746,-460.0,0.00021917,4]
[365496939,1749705041756,-460.0,0.00021917,4]
[365496941,1749705041765,-243.99816561,0.00021917,4]
[365496943,1749705041775,-307.55728256,0.00021917,4]
[365496945,1749705041784,-460.0,0.00021917,4]
[365496947,1749705041794,-460.0,0.00021917,4]
[365496949,1749705041804,-460.0,0.00021917,4]
[365496951,1749705041814,-460.0,0.00021917,4]
[365496953,1749705041823,-460.0,0.00021917,4]
[365496955,1749705041833,-460.0,0.00021917,4]
[365496957,1749705041844,-270.64,0.00021917,4]
[365496959,1749705041854,-258.01,0.00021917,4]
[365496961,1749705041864,-460.0,0.00021917,4]
[365496963,1749705041875,-467.46,0.00021917,4]
[365496965,1749705041885,-331.35,0.00021917,4]
[365496967,1749705041894,-460.0,0.00021917,4]
[365496969,1749705041904,-460.0,0.00021917,4]
[365496971,1749705041913,-477.73,0.00021917,4]
[365496972,1749705041923,-460.0,0.00021917,4]
[365496974,1749705041933,-460.0,0.00021917,4]
[365496976,1749705041942,-460.0,0.00021917,4]
[365496978,1749705041952,-460.0,0.00021917,4]
[365496980,1749705041961,-460.0,0.00021917,4]
[365496982,1749705041971,-502.47256086,0.00021956,2]
[365496984,1749705041980,-432.51262401,0.00021956,2]
[365496986,1749705041990,-598.9562422,0.00021969,6]
[365496988,1749705042001,-1000.0,0.00021992,2]
[365496990,1749705042012,-164.0,0.00022,2]
[365496992,1749705042022,-15100.7197464,0.00022041,2]
[365496994,1749705042031,-200.0,0.00022046,7]
[365496996,1749705042041,-200.0,0.00022046,7]
[365496998,1749705042050,-200.0,0.00022046,7]
[365497000,1749705042060,-200.0,0.00022046,7]
[365497001,1749705042070,-200.0,0.00022046,7]
[365497003,1749705042079,-200.0,0.00022046,7]
[365497005,1749705042088,-38215.6346164,0.00022098,2]
[365497007,1749705042098,-598.9562422,0.00022141,6]
[365497009,1749705042107,-539.73637598,0.0002219,2]
[365497011,1749705042117,-500.0,0.0002219,2]
[365497013,1749705042127,-460.0,0.00022191,4]
[365497015,1749705042137,-460.0,0.00022191,4]
[365497016,1749705042147,-460.0,0.00022191,2]
[365497018,1749705042156,-447.17992018,0.00022191,4]
[365497020,1749705042166,-460.0,0.00022191,4]
[365497022,1749705042175,-460.0,0.00022191,4]
[365497023,1749705042185,-460.0,0.00022191,4]
[365497025,1749705042194,-460.0,0.00022191,4]
[365497027,1749705042204,-460.0,0.00022191,4]
[365497029,1749705042214,-385.34,0.00022191,4]
[365497031,1749705042223,-460.0,0.00022191,4]
[365497033,1749705042234,-524.59,0.00022191,4]
[365497035,1749705042244,-467.46,0.00022191,4]
[365497037,1749705042254,-460.0,0.00022191,4]
[365497039,1749705042263,-477.73,0.00022191,4]
[365497041,1749705042272,-460.0,0.00022191,4]
[365497042,1749705042282,-460.0,0.00022191,4]
[365497053,1749705042388,-460.0,0.00022191,4]
[365497055,1749705042399,-460.0,0.00022191,4]
[365497057,1749705042410,-460.0,0.00022191,4]
[365497059,1749705042420,-545.90561069,0.000222,69]
[365497061,1749705042429,-545.90561069,0.000222,69]
[365497063,1749705042439,-545.90561069,0.000222,69]
[365497065,1749705042448,-5000.0,0.00022227,2]
[365497067,1749705042458,-207.4,0.00022227,2]
[365497068,1749705042468,-200.0,0.00022237,7]
[365497070,1749705042478,-200.0,0.00022237,7]
[365497072,1749705042488,-200.0,0.00022237,7]
[365497074,1749705042497,-200.0,0.00022237,7]
[365497076,1749705042507,-200.0,0.00022237,7]
[365497078,1749705042517,-200.0,0.00022237,7]
[365497080,1749705042527,-201.654,0.00022237,7]
[365497082,1749705042537,-1431.27,0.00022297,2]
[365497084,1749705042547,-1137.42,0.000223,7]
[365497086,1749705042556,-598.9562422,0.00022314,7]
[365497087,1749705042566,-151.0,0.00022314,7]
[365497088,1749705042576,-4126.31,0.000224,7]
[365497089,1749705042585,-160.0,0.00022464,2]
[365497090,1749705042594,-460.0,0.00022465,4]
[365497091,1749705042604,-460.0,0.00022465,4]
[365497092,1749705042614,-460.0,0.00022465,2]
[365497094,1749705042623,-242.32929663,0.00022465,4]
[365497096,1749705042633,-460.0,0.00022465,4]
[365497098,1749705042642,-460.0,0.00022465,4]
[365497101,1749705042652,-460.0,0.00022465,4]
[365497102,1749705042661,-460.0,0.00022465,4]
[365497105,1749705042671,-460.0,0.00022465,4]
[365497107,1749705042681,-467.46,0.00022465,4]
[365497109,1749705042690,-460.0,0.00022465,4]
[365497111,1749705042700,-477.73,0.00022465,4]
[365497113,1749705042709,-460.0,0.00022465,4]
[365497115,1749705042719,-460.0,0.00022465,4]
[365497118,1749705042728,-460.0,0.00022465,4]
[365497121,1749705042738,-460.0,0.00022465,4]
[365497124,1749705042748,-460.0,0.00022465,4]
[365497126,1749705042759,-587.0,0.00022466,2]
[365497128,1749705042768,-598.9562422,0.00022486,7]
[365497130,1749705042778,-653.0,0.00022513,2]
[365497132,1749705042787,-2160.0,0.00022513,2]